fUSD/lending_fUSD_20250809
["ID","MTS","AMOUNT","RATE_DAILY","PERIOD"]
[378162394,1754755840256,-721.41753346,0.0002073,2]
[378162396,1754755840266,-721.41753346,0.00020754,2]
[378162398,1754755840275,-721.41753346,0.00020778,2]
[378162400,1754755840285,-71236.41908253,0.0002079,2]
[378162402,1754755840293,-7387.9720084,0.000208,2]
[378162404,1754755840303,-721.41753346,0.00020803,2]
[378162406,1754755840312,-721.41753346,0.00020827,2]
[378162408,1754755840321,-721.41753346,0.00020851,2]
[378162410,1754755840331,-721.41753346,0.00020876,2]
[378162412,1754755840340,-158.6875638,0.00020899,2]
[378162414,1754755840348,-158.68756378,0.00020899,2]
[378162416,1754755840358,-158.68756378,0.00020899,2]
[378162418,1754755840367,-158.68756378,0.00020899,2]
[378162420,1754755840377,-158.68756378,0.000209,2]
[378162422,1754755840387,-160.12078098,0.000209,2]
[378162424,1754755840396,-2500.0,0.000209,3]
[378162426,1754755840405,-721.41753346,0.000209,2]
[378162428,1754755840414,-1016.11298336,0.000209,2]
[378162429,1754755840423,-1366.1787619,0.000209,2]
[378162432,1754755840433,-7387.9720084,0.000209,2]
[378162433,1754755840442,-1562.73713797,0.000209,2]
[378162436,1754755840452,-1562.73713798,0.000209,2]
[378162437,1754755840465,-156.18272981,0.000209,2]
[378162439,1754755840474,-3654.75838333,0.00020936,2]
[378162442,1754755840484,-152.79,0.00020943,2]
[378162443,1754755840493,-500.0,0.00020973,2]
[378162445,1754755840502,-321.80617363,0.00020973,2]
[378162447,1754755840511,-500.0,0.00020973,2]
[378162449,1754755840521,-500.0,0.00020973,2]
[378162452,1754755840532,-500.0,0.00020973,2]
[378162453,1754755840541,-500.0,0.00020973,2]
[378162456,1754755840551,-500.0,0.00020973,2]
[378162458,1754755840560,-500.0,0.00020973,2]
[378162459,1754755840570,-170.28872207,0.00020973,2]
[378162462,1754755840580,-500.0,0.00020973,2]
[378162463,1754755840589,-500.0,0.00020973,2]
[378162465,1754755840598,-500.0,0.00020973,2]
[378162467,1754755840607,-511.17771888,0.00020973,2]
[378162470,1754755840617,-500.0,0.00020973,2]
[378162471,1754755840626,-500.0,0.00020973,2]
[378162473,1754755840635,-500.0,0.00020973,2]
[378162475,1754755840644,-500.0,0.00020973,2]
[378162477,1754755840654,-654.09243132,0.00020979,2]
[378162479,1754755840663,-165.55290762,0.00020986,4]
[378162481,1754755840672,-150.0,0.00020986,4]
[378162483,1754755840682,-4289.44,0.00020988,2]
[378162485,1754755840691,-516.6184814,0.0002099,7]
[378162486,1754755840701,-193.49867068,0.0002099,2]
[378162488,1754755840711,-397.87489445,0.00020999,2]
[378162490,1754755840720,-300.0,0.00020999,2]
[378162492,1754755840729,-300.0,0.00020999,2]
[378162493,1754755840739,-300.0,0.00020999,2]
[378162495,1754755840748,-300.0,0.00020999,2]
[378162497,1754755840758,-163.09355385,0.00020999,2]
[378162499,1754755840767,-21491.82809889,0.00020999,7]
[378162500,1754755840777,-616.24829841,0.00020999,2]
[378162502,1754755840786,-457.70825493,0.00020999,7]
[378162504,1754755840795,-969.4,0.00020999,2]
[378162506,1754755840806,-150.0,0.00020999,2]
[378162507,1754755840815,-155.635489,0.00020999,2]
[378162509,1754755840824,-210.19055485,0.00020999,2]
[378162511,1754755840840,-551.08691842,0.00020999,2]
[378162513,1754755840851,-197.9976396,0.00020999,2]
[378162515,1754755840860,-150.48470921,0.00020999,2]
[378162516,1754755840870,-96553.02113467,0.00021,2]
[378162518,1754755840880,-763.18514002,0.00021,2]
[378162520,1754755840889,-422853.1158409,0.00021,2]
[378162522,1754755840903,-518.49320912,0.00021,2]
[378162525,1754755840928,-6579.05086563,0.00021,2]
[378162527,1754755840939,-469.82648882,0.00021,2]
[378162531,1754755840982,-27580.26950679,0.00021,2]
[378162533,1754755840992,-7381.00861497,0.00021,2]
[378162535,1754755841004,-6521.94659566,0.00021,2]
[378162686,1754755842815,-888.0,0.00020679,3]
[378162688,1754755842825,-158.68756378,0.000209,2]
[378162690,1754755842836,-9300.22833401,0.00021,2]
[378162699,1754755842903,-2964.85782526,0.00021,2]
[378162710,1754755842994,-1067.6047624,0.00021,2]
[378162712,1754755843007,-2304.42325273,0.00021,2]
[378162714,1754755843019,-927.77,0.00021,2]
[378162716,1754755843031,-1743.75217009,0.00021,2]
[378162719,1754755843043,-7425.25327817,0.00021,2]
[378162721,1754755843054,-45422.748817,0.00021,2]
[378162724,1754755843065,-4929.45936371,0.00021,2]
[378162727,1754755843082,-2050.699985,0.00021,2]
[378162729,1754755843094,-5719.21228869,0.00021,2]
[378162731,1754755843106,-6549.54019973,0.00021,2]
[378162734,1754755843119,-550.517504,0.00021,2]
[378162738,1754755843147,-421.21779999,0.00021,2]
[378162740,1754755843159,-19869.84247,0.00021,2]
[378162786,1754755843512,-1742.40049298,0.00021,2]
[378162789,1754755843524,-609.75002811,0.00021,2]
[378162791,1754755843536,-6246.50973598,0.00021,2]
[378163050,1754755846164,-158.68756378,0.000209,2]
[378163052,1754755846174,-13629.21517121,0.00021,2]
[378163054,1754755846186,-6714.665815,0.00021,2]
[378163056,1754755846197,-9493.69974406,0.00021,2]
[378163063,1754755846256,-377856.6721834,0.00021,2]
[378163065,1754755846268,-336.248,0.00021,2]
[378163067,1754755846279,-1755.16110126,0.00021,2]
[378164451,1754755875489,516.0,0.00017626,2]
[378164489,1754756173070,150.87914169,0.00025,120]
[378164493,1754756231905,7785.12085831,0.00025,120]
[378164508,1754756393253,156.92,0.00013699,2]
[378164526,1754756520226,279.88,0.00015068,2]
[378164527,1754756520437,279.88,0.00016742,2]
[378164534,1754756568504,8488.0,0.00024,120]
[378164567,1754756920208,8368.32078375,0.000151,2]
[378164591,1754757031898,-279.88,0.00018415,2]
[378164592,1754757031909,-176.27203626,0.00018873,2]
[378164593,1754757031919,-167.68551394,0.00018972,2]
[378164594,1754757031954,-132.31448606,0.00018972,2]
[378164595,1754757031964,-500.0,0.00018973,2]
[378164596,1754757031973,-118.49592853,0.00018973,2]
[378164597,1754757032273,-381.50407147,0.00018973,2]
[378164598,1754757032283,-500.0,0.00018973,2]
[378164599,1754757032292,-500.0,0.00018973,2]
[378164600,1754757032301,-348.1051214,0.00018973,2]
[378164601,1754757032310,-500.0,0.00018973,2]
[378164602,1754757032320,-500.0,0.00018973,2]
[378164603,1754757032333,-500.0,0.00018973,2]
[378164604,1754757032341,-500.0,0.00018973,2]
[378164605,1754757032351,-321.80617363,0.00018973,2]
[378164606,1754757032360,-205.25894367,0.00018973,2]
[378164607,1754757032371,-500.0,0.00018973,2]
[378164608,1754757032380,-500.0,0.00018973,2]
[378164609,1754757032392,-500.0,0.00018973,2]
[378164610,1754757032401,-500.0,0.00018973,2]
[378164611,1754757032411,-500.0,0.00018973,2]
[378164612,1754757032420,-304.47934944,0.00018987,2]
[378164613,1754757032430,-274.58116434,0.00018999,2]
[378164614,1754757032439,-184.27250217,0.00018999,2]
[378164615,1754757032448,-262.68272217,0.00018999,2]
[378164616,1754757032458,-500.0,0.00018999,2]
[378164617,1754757032468,-201.57162763,0.00018999,2]
[378164618,1754757032477,-600.96135277,0.00018999,2]
[378164619,1754757032487,-500.0,0.00018999,2]
[378164621,1754757032496,-156.98853584,0.00018999,2]
[378164623,1754757032505,-500.0,0.00018999,2]
[378164625,1754757032514,-500.0,0.00018999,2]
[378164627,1754757032523,-500.0,0.00018999,2]
[378164629,1754757032532,-500.0,0.00018999,2]
[378164631,1754757032542,-500.0,0.00018999,2]
[378164633,1754757032551,-500.0,0.00018999,2]
[378164635,1754757032561,-500.0,0.00018999,2]
[378164637,1754757032570,-500.0,0.00018999,2]
[378164639,1754757032581,-500.0,0.00018999,2]
[378164641,1754757032590,-500.0,0.00018999,2]
[378164643,1754757032599,-500.0,0.00018999,2]
[378164645,1754757032609,-500.0,0.00018999,2]
[378164647,1754757032618,-500.0,0.00018999,2]
[378164649,1754757032628,-399.66068094,0.00018999,2]
[378164651,1754757032637,-500.0,0.00018999,2]
[378164653,1754757032646,-500.0,0.00018999,2]
[378164655,1754757032655,-500.0,0.00018999,2]
[378164657,1754757032664,-500.0,0.00018999,2]
[378164659,1754757032674,-500.0,0.00018999,2]
[378164661,1754757032683,-500.0,0.00018999,2]
[378164663,1754757032692,-14525.3060121,0.00019,2]
[378164665,1754757032704,-855.81683533,0.00019,2]
[378164668,1754757032727,-11154.60516971,0.00019,2]
[378164670,1754757032738,-97675.50891796,0.00019,2]
[378164672,1754757032750,-568.29956451,0.00019,2]
[378164675,1754757032761,-2722.35597138,0.00019,2]
[378164677,1754757032772,-4827.22402716,0.00019,2]
[378164679,1754757032788,-733.8204302,0.00019,2]
[378165162,1754757037858,-421.55,0.00019,2]
[378165163,1754757038160,-5054.32621002,0.00019,2]
[378165326,1754757039858,-507068.11850789,0.00019,2]
[378165329,1754757039869,-550.74,0.00019051,2]
[378165330,1754757039878,-177.0,0.00019052,2]
[378165332,1754757039887,-514.0,0.00019087,2]
[378165334,1754757039897,-167.98,0.00019138,2]
[378165336,1754757039906,-947.88,0.00019189,2]
[378165338,1754757039916,-158.6875638,0.00019229,2]
[378165340,1754757039926,-304.4793494,0.0001926,2]
[378165342,1754757039935,-4350.92440494,0.00019329,2]
[378165344,1754757039944,-189.17,0.00019429,2]
[378165346,1754757039953,-250.0,0.00019488,2]
[378165348,1754757039963,-4350.9244049,0.00019504,2]
[378165350,1754757039972,-782.47333697,0.00019521,2]
[378165352,1754757039981,-1000.0,0.00019521,2]
[378165354,1754757039991,-500.0,0.00019521,2]
[378165356,1754757040001,-1000.0,0.00019521,2]
[378165358,1754757040011,-1010.94443415,0.00019521,2]
[378165360,1754757040020,-500.0,0.00019521,2]
[378165362,1754757040031,-508.40118696,0.00019521,2]
[378165364,1754757040041,-1000.0,0.00019521,2]
[378165367,1754757040051,-1000.0,0.00019521,2]
[378165369,1754757040062,-170.0,0.00019531,7]
[378165371,1754757040072,-304.4793494,0.00019534,2]
[378165372,1754757040083,-158.68756378,0.00019563,2]
[378165375,1754757040094,-600.0,0.00019635,2]
[378165377,1754757040104,-600.0,0.00019635,2]
[378165379,1754757040115,-600.0,0.00019635,2]
[378165380,1754757040124,-217.92,0.00019635,2]
[378165382,1754757040134,-4350.9244049,0.00019678,2]
[378165384,1754757040143,-304.4793494,0.00019807,2]
[378165386,1754757040152,-4350.9244049,0.00019853,2]
[378165388,1754757040162,-178.3,0.00019861,2]
[378165390,1754757040171,-302.64,0.00019868,2]
[378165392,1754757040181,-305.74,0.0001987,2]
[378165394,1754757040190,-300.73,0.00019871,2]
[378165396,1754757040199,-305.09,0.00019873,2]
[378165398,1754757040208,-302.13,0.00019876,2]
[378165400,1754757040217,-300.53,0.00019878,2]
[378165402,1754757040227,-302.86,0.00019882,2]
[378165404,1754757040237,-303.71,0.00019885,2]
[378165406,1754757040246,-304.1,0.00019891,2]
[378165408,1754757040256,-300.05,0.00019895,2]
[378165410,1754757040266,-158.68756378,0.00019897,2]
[378165412,1754757040276,-721.41753365,0.000199,2]
[378165414,1754757040285,-721.41753346,0.000199,2]
[378165416,1754757040295,-721.41753346,0.000199,2]
[378165419,1754757040307,-721.41753346,0.000199,2]
[378165421,1754757040317,-721.41753346,0.000199,2]
[378165423,1754757040326,-721.41753346,0.000199,2]
[378165425,1754757040337,-721.41753346,0.000199,2]
[378165427,1754757040346,-721.41753346,0.000199,2]
[378165429,1754757040355,-721.41753346,0.000199,2]
[378165431,1754757040365,-721.41753346,0.000199,2]
[378165433,1754757040375,-200.0,0.000199,7]
[378165435,1754757040384,-303.05,0.00019905,2]
[378165437,1754757040393,-303.26,0.00019908,2]
[378165439,1754757040403,-303.78,0.00019926,2]
[378165441,1754757040413,-305.75,0.00019926,2]
[378165442,1754757040422,-721.41753346,0.00019977,2]
[378165445,1754757040432,-303.16,0.00019999,2]
[378165447,1754757040442,-305.94,0.00019999,2]
[378165449,1754757040451,-1584.23041008,0.0002,2]
[378165451,1754757040460,-1501.59489582,0.0002,2]
[378165453,1754757040470,-200.0,0.0002,2]
[378165455,1754757040480,-8118.30409329,0.0002,14]
[378165457,1754757040489,-550.74,0.00020004,2]
[378165459,1754757040498,-4350.9244049,0.00020027,2]
[378165461,1754757040507,-174.37,0.00020031,2]
[378165463,1754757040517,-500.0,0.00020052,2]
[378165465,1754757040526,-273.9954192,0.00020052,2]
[378165467,1754757040536,-301.85,0.00020065,2]
[378165469,1754757040544,-300.11,0.00020065,2]
[378165470,1754757040554,-302.62,0.00020065,2]
[378165472,1754757040563,-302.86,0.00020065,2]
[378165474,1754757040572,-300.57,0.00020065,2]
[378165476,1754757040583,-301.22,0.00020066,2]
[378165478,1754757040592,-1500.0,0.00020068,2]
[378165481,1754757040602,-302.98,0.0002007,2]
[378165482,1754757040611,-305.18,0.0002007,2]
[378165484,1754757040620,-721.41753346,0.0002008,2]
[378165486,1754757040629,-304.4793494,0.0002008,2]
[378165488,1754757040638,-279.88,0.00020088,2]
[378165490,1754757040647,-500.0,0.00020107,2]
[378165492,1754757040656,-500.0,0.00020162,2]
[378165494,1754757040665,-301.62,0.00020181,2]
[378165496,1754757040675,-301.33,0.00020181,2]
[378165498,1754757040684,-721.41753346,0.00020182,2]
[378165500,1754757040693,-1000.0,0.00020193,2]
[378165502,1754757040702,-4350.9244049,0.00020202,2]
[378165504,1754757040711,-500.0,0.00020217,2]
[378165506,1754757040720,-158.68756378,0.00020232,2]
[378165508,1754757040729,-300.98,0.00020232,2]
[378165510,1754757040739,-1593.98,0.00020261,2]
[378165512,1754757040748,-796.99,0.00020261,2]
[378165514,1754757040757,-302.64,0.00020264,2]
[378165516,1754757040766,-305.2,0.00020277,2]
[378165518,1754757040776,-721.41753346,0.00020285,2]
[378165520,1754757040789,-820.95722968,0.00020315,2]
[378165522,1754757040799,-304.54,0.00020334,2]
[378165524,1754757040809,-303.02,0.00020334,2]
[378165526,1754757040818,-304.4793494,0.00020353,2]
[378165528,1754757040828,-825.12235781,0.0002037,2]
[378165530,1754757040837,-4350.9244049,0.00020376,2]
[378165532,1754757040846,-721.41753346,0.00020387,2]
[378165534,1754757040856,-298.51,0.00020402,2]
[378165535,1754757040866,-150.0,0.00020439,2]
[378165537,1754757040875,-150.0,0.00020439,2]
[378165539,1754757040884,-150.0,0.00020439,2]
[378165541,1754757040894,-300.54,0.00020439,2]
[378165543,1754757040903,-304.43,0.00020439,2]
[378165545,1754757040913,-721.41753346,0.0002049,2]
[378165547,1754757040923,-30413.36925876,0.000205,2]
[378165549,1754757040933,-150.0,0.000205,2]
[378165551,1754757040943,-150.0,0.000205,2]
[378165553,1754757040952,-228.09633422,0.000205,2]
[378165556,1754757040962,-500.0,0.000205,2]
[378165557,1754757040972,-302.31333229,0.000205,2]
[378165559,1754757040982,-4350.9244049,0.00020551,2]
[378165561,1754757040994,-302.23,0.00020563,2]
[378165564,1754757041004,-158.68756378,0.00020566,2]
[378165566,1754757041014,-721.41753346,0.00020592,2]
[378165568,1754757041023,-178.3,0.00020606,2]
[378165570,1754757041033,-2000.0,0.00020616,2]
[378165572,1754757041043,-304.4793494,0.00020627,2]
[378165574,1754757041053,-820.95722968,0.00020635,2]
[378165576,1754757041063,-500.0,0.00020658,2]
[378165578,1754757041072,-420.0,0.0002068,2]
[378165579,1754757041083,-721.41753346,0.00020695,2]
[378165581,1754757041093,-455.39292064,0.000207,2]
[378165583,1754757041102,-150.0,0.00020713,2]
[378165585,1754757041111,-150.0,0.00020713,2]
[378165587,1754757041121,-150.0,0.00020713,2]
[378165589,1754757041130,-4350.9244049,0.00020725,2]
[378165591,1754757041139,-500.0,0.00020774,2]
[378165593,1754757041149,-71236.41908253,0.0002079,2]
[378165595,1754757041158,-721.41753346,0.00020797,2]
[378165597,1754757041168,-3672.0,0.000208,2]
[378165599,1754757041176,-159.0,0.000208,2]
[378165601,1754757041185,-455.39292063,0.000208,2]
[378165603,1754757041195,-200.0,0.00020832,2]
[378165605,1754757041205,-150.0,0.00020849,2]
[378165607,1754757041216,-150.0,0.00020849,2]
[378165609,1754757041227,-3691.1788,0.00020849,2]
[378165611,1754757041236,-5800.0,0.00020875,2]
[378165613,1754757041247,-312.60245694,0.00020883,2]
[378165723,1754757042880,-846.06000005,0.00019689,3]
[378165724,1754757042944,-41.93999995,0.00019689,3]
[378165725,1754757042954,-500.0,0.000201,7]
[378165726,1754757042963,-205.69615197,0.000202,7]
[378165727,1754757042975,-494.30384803,0.000202,7]
[378165728,1754757042985,-375.16821727,0.00020883,2]
[378165754,1754757045981,-888.0,0.00020189,3]
[378165755,1754757045991,-1000.0,0.000203,7]
[378165756,1754757046001,-5112.22932579,0.00020883,2]
[378165757,1754757046010,-5800.0,0.00020892,2]
[378165758,1754757046020,-633.77370663,0.000209,2]
[378165759,1754757046030,-156.10350321,0.000209,2]
[378165760,1754757046047,-5643.89649679,0.000209,2]
[378165761,1754757046056,-1477.59440168,0.000209,2]
[378165762,1754757046066,-543.16177652,0.000209,3]
[378165800,1754757475681,249.68,0.00015068,2]
[378165801,1754757476060,249.68,0.0001676,2]
[378165810,1754757587252,-300.0,0.00018087,2]
[378165811,1754757589261,-211.13820549,0.00018087,2]
[378165812,1754757590828,-16.86179451,0.00018087,2]
[378165820,1754757680370,156.92,0.00013699,2]
[378165821,1754757707306,-214.65492545,0.00018087,2]
[378165840,1754757915802,514.0,0.00017087,2]
[378165883,1754758232090,-249.68,0.00018452,2]
[378165884,1754758232099,-166.48602229,0.00018452,2]
[378165885,1754758232108,-165.55290762,0.00018888,2]
[378165886,1754758232118,-150.0,0.00018888,2]
[378165887,1754758232127,-514.0,0.00019611,5]
[378165888,1754758232136,-178.3,0.00019655,2]
[378165889,1754758232146,-371.8,0.0001968,2]
[378165890,1754758232159,-159.0,0.000197,2]
[378165891,1754758232168,-152.62807008,0.00019714,2]
[378165892,1754758232199,-394.35192992,0.00019714,2]
[378165893,1754758232208,-155.03,0.00019721,2]
[378165894,1754758232218,-170.0,0.0001973,7]
[378165895,1754758232228,-1917.8735306,0.00019819,2]
[378165896,1754758232254,-1165.3064694,0.00019819,2]
[378165897,1754758232263,-250.0,0.00019844,2]
[378165898,1754758232274,-784.6935276,0.00019855,2]
[378165899,1754758232412,-215.3064724,0.00019855,2]
[378165900,1754758232422,-300.0,0.00019881,2]
[378165901,1754758232431,-300.0,0.00019881,2]
[378165902,1754758232441,-1200.0,0.00019881,2]
[378165903,1754758232450,-600.0,0.00019882,2]
[378165904,1754758232460,-600.0,0.00019882,2]
[378165905,1754758232469,-414.34,0.00019882,2]
[378165906,1754758232478,-7130.0,0.00019903,2]
[378165907,1754758232488,-500.0,0.00019918,2]
[378165908,1754758232497,-192.57,0.0001993,2]
[378165909,1754758232506,-2406.55178152,0.0002,4]
[378165910,1754758232516,-625.20891098,0.0002,2]
[378165911,1754758232525,-796.99,0.00020055,2]
[378165912,1754758232534,-249.68,0.00020144,2]
[378165913,1754758232543,-687.4110305,0.0002037,2]
[378165914,1754758232552,-28403.78276594,0.000205,2]
[378165915,1754758232562,-371.8,0.00020664,2]
[378165916,1754758232571,-622.58,0.000207,2]
[378165918,1754758232580,-528.0,0.00020713,2]
[378165920,1754758232593,-595.1956,0.0002078,2]
[378165921,1754758232603,-168.0,0.00020788,2]
[378165922,1754758232612,-944.9320733,0.0002079,2]
[378165923,1754758232622,-697.9982,0.00020792,2]
[378165924,1754758232634,-9633.71745778,0.000208,2]
[378165925,1754758232646,-11186.31095127,0.000208,2]
[378165926,1754758232659,-3626.0867734,0.000208,2]
[378165928,1754758237933,-308.712627,0.00019513,2]
[378165929,1754758237944,-888.0,0.00020111,3]
[378165930,1754758237955,-970.07481755,0.000208,2]
[378165931,1754758237965,-168.0,0.00020821,2]
[378165932,1754758237975,-200.0,0.00020832,2]
[378165933,1754758237985,-1500.0,0.00020868,2]
[378165934,1754758237994,-3691.1788,0.00020877,2]
[378165935,1754758238005,-1202.63117751,0.00020877,2]
[378165936,1754758238037,-1256.48829523,0.00020877,2]
[378166122,1754758240135,-888.0,0.00020013,3]
[378166124,1754758240145,-1363.85352726,0.00020877,2]
[378166126,1754758240156,-654.09243132,0.00020879,2]
[378166128,1754758240171,-156.0,0.0002088,2]
[378166130,1754758240181,-176.834,0.00020883,2]
[378166132,1754758240190,-160.31500748,0.00020888,2]
[378166134,1754758240199,-4672.03752551,0.00020888,2]
[378166136,1754758240209,-4672.03752549,0.00020889,2]
[378166138,1754758240218,-160.31500743,0.0002089,2]
[378166140,1754758240228,-158.68756378,0.0002089,2]
[378166142,1754758240238,-910.78584126,0.0002089,2]
[378166144,1754758240248,-255.39257798,0.0002089,2]
[378166146,1754758240257,-4672.03752549,0.00020891,2]
[378166148,1754758240266,-160.31500743,0.00020891,2]
[378166150,1754758240275,-255.39257796,0.00020892,2]
[378166152,1754758240284,-150.0,0.00020892,2]
[378166154,1754758240293,-250.0,0.00020892,2]
[378166156,1754758240303,-250.0,0.00020892,2]
[378166158,1754758240312,-150.0,0.00020892,2]
[378166160,1754758240321,-150.0,0.00020892,2]
[378166162,1754758240330,-150.0,0.00020892,2]
[378166164,1754758240339,-150.0,0.00020892,2]
[378166166,1754758240348,-206.26841048,0.00020892,2]
[378166168,1754758240357,-4672.03752549,0.00020892,2]
[378166170,1754758240367,-160.31500743,0.00020893,2]
[378166172,1754758240376,-4672.03752549,0.00020893,2]
[378166174,1754758240385,-255.39257796,0.00020893,2]
[378166175,1754758240395,-160.31500743,0.00020894,2]
[378166177,1754758240404,-435.09244049,0.00020895,2]
[378166179,1754758240413,-1862.70128326,0.00020895,2]
[378166182,1754758240425,-2327.03933249,0.00020895,2]
[378166186,1754758240459,-482.29690974,0.00020895,2]
[378166188,1754758240469,-255.39257796,0.00020895,2]
[378166190,1754758240478,-160.31500743,0.00020896,2]
[378166193,1754758240488,-435.09244049,0.00020896,2]
[378166194,1754758240497,-4672.03752549,0.00020896,2]
[378166197,1754758240506,-255.39257796,0.00020897,2]
[378166199,1754758240516,-160.31500743,0.00020897,2]
[378166200,1754758240525,-435.09244049,0.00020897,2]
[378166203,1754758240535,-4672.03752549,0.00020897,2]
[378166205,1754758240545,-255.39257796,0.00020898,2]
[378166207,1754758240554,-160.31500743,0.00020899,2]
[378166209,1754758240564,-435.09244049,0.00020899,2]
[378166211,1754758240573,-4672.03752549,0.00020899,2]
[378166213,1754758240582,-457.19043615,0.000209,3]
[378166226,1754758240705,-76.58013488,0.00020513,3]
[378166448,1754758243012,-281.8421775,0.00020513,3]
[378166714,1754758246061,-529.57768762,0.00020513,3]
[378166715,1754758246071,-1499.64778733,0.000209,3]
[378166716,1754758246081,-2000.0,0.000209,2]
[378166717,1754758246090,-200.0,0.000209,2]
[378166718,1754758246100,-351.17052973,0.000209,2]
[378166719,1754758246109,-200.0,0.000209,2]
[378166720,1754758246119,-228.9680381,0.000209,2]
[378166721,1754758246128,-435.09244049,0.000209,2]
[378166722,1754758246138,-160.31500743,0.000209,2]
[378166723,1754758246147,-3099.24556898,0.000209,2]
[378166724,1754758246160,-200.0,0.000209,2]
[378166725,1754758246170,-4672.03752549,0.000209,2]
[378166726,1754758246180,-255.39257796,0.000209,2]
[378166727,1754758246189,-429.02895701,0.000209,2]
[378166728,1754758246199,-4957.56999,0.000209,2]
[378166729,1754758246209,-1562.73713797,0.000209,2]
[378166730,1754758246219,-1562.73713798,0.000209,2]
[378166731,1754758246229,-156.18272981,0.000209,2]
[378166733,1754758246239,-3654.75838333,0.00020936,2]
[378166735,1754758246249,-8289.44,0.00020968,2]
[378166737,1754758246259,-500.0,0.00020973,2]
[378166739,1754758246268,-501.17371074,0.00020973,2]
[378166741,1754758246278,-500.0,0.00020973,2]
[378166743,1754758246287,-500.0,0.00020973,2]
[378166744,1754758246296,-506.47182034,0.00020973,2]
[378166745,1754758246306,-500.0,0.00020973,2]
[378166746,1754758246315,-170.28872207,0.00020973,2]
[378166747,1754758246325,-511.17771888,0.00020973,2]
[378166748,1754758246335,-500.0,0.00020973,2]
[378166749,1754758246345,-500.0,0.00020973,2]
[378166750,1754758246354,-300.0,0.00020973,2]
[378166751,1754758246363,-164.735868,0.00020973,2]
[378166752,1754758246373,-193.49867068,0.00020978,2]
[378166753,1754758246383,-168.0,0.00020983,2]
[378166754,1754758246395,-257.14695908,0.00020987,2]
[378166755,1754758246405,-491.10013934,0.00020987,2]
[378166756,1754758246414,-183.87790552,0.00020987,2]
[378166757,1754758246424,-192.20681504,0.00020987,2]
[378166758,1754758246433,-500.0,0.00020987,2]
[378166759,1754758246443,-500.0,0.00020987,2]
[378166760,1754758246452,-155.51785344,0.00020987,2]
[378166761,1754758246461,-616.24829841,0.00020987,2]
[378166762,1754758246471,-969.4,0.00020987,2]
[378166763,1754758246480,-74197.98634666,0.00020988,2]
[378166768,1754758259408,1296.98921625,0.000176,5]
[378166769,1754758259429,4214.01078375,0.000176,5]
[378166775,1754758329855,-166.1190837,0.00018087,2]
[378166776,1754758331831,-189.83,0.00018087,2]
[378166777,1754758335102,-162.81929787,0.00018087,2]
[378166778,1754758338584,-446.82913875,0.00018087,2]
[378166779,1754758341809,-154.08,0.00018087,2]
[378166800,1754758563765,526.92645783,0.00017986,2]
[378166808,1754758615122,156.92,0.00013699,2]
[378166838,1754758992654,163.30253201,0.00013,3]
[378166852,1754759143382,-1512.0,0.00024,120]
[378166868,1754759282932,153.0,0.000177,2]
[378166900,1754759432214,-300.0,0.00018086,2]
[378166901,1754759432225,-1200.0,0.00018086,2]
[378166902,1754759432234,-203.93032165,0.00018086,2]
[378166903,1754759432319,-96.06967835,0.00018086,2]
[378166904,1754759432329,-844.31747968,0.00018087,2]
[378166905,1754759432339,-1000.0,0.00018087,2]
[378166906,1754759432348,-1000.0,0.00018087,2]
[378166907,1754759432357,-1000.0,0.00018087,2]
[378166908,1754759432366,-1000.0,0.00018087,2]
[378166909,1754759432375,-1000.0,0.00018087,2]